{"text_format":"1","workbook":"xlsx","n_sheets":6,"sheets":["Strona tytuł.","wykaz faktur","zest. rzecz-finans","Oświadczenie","Załączniki","Arkusz1"],"not_rendered":{"charts":0,"images":3,"macros":1,"external_links":0,"defined_names":23,"comments":0,"pivot_tables":0},"unopened":[],"bounds":{"document_bytes":16777216,"sheet_cells":100000,"rows_first":2000,"rows_last":500,"rows_between":2000,"halvings":0,"cell_chars":16384,"cell_head_chars":4096},"cells_cut":0,"cells_raw":0,"read":"whole","date_system":"1900"}

{"sheet":"Strona tytuł.","index":0,"n_rows":116,"n_cols":41,"rows_kept":116,"cut":false,"hidden":false,"merged":[[77,9,77,31],[79,14,79,32],[79,3,79,13],[81,3,81,8],[81,9,81,33],[101,13,102,13],[101,15,102,15],[101,16,102,16],[117,0,117,36],[88,33,89,33],[88,20,89,20],[84,8,85,8],[84,9,85,9],[84,4,85,4],[84,5,85,5],[84,6,85,6],[84,7,85,7],[88,32,89,32],[101,33,102,33],[87,2,87,12],[88,2,89,2],[84,27,85,27],[88,3,89,3],[84,13,85,13],[84,14,85,14],[113,32,114,33],[101,32,102,32],[107,23,108,30],[101,25,102,25],[110,23,111,30],[113,23,114,30],[101,12,102,12],[88,17,89,17],[88,18,89,18],[88,27,89,27],[84,33,85,33],[101,24,102,24],[88,30,89,30],[93,21,94,28],[93,30,94,31],[88,21,89,21],[88,29,89,29],[88,22,89,22],[88,15,89,15],[87,26,87,35],[88,35,89,35],[84,22,85,22],[84,29,85,29],[93,2,94,9],[93,11,94,12],[101,20,102,20],[101,21,102,21],[101,31,102,31],[101,19,102,19],[88,12,89,12],[88,13,89,13],[88,14,89,14],[88,25,89,25],[88,16,89,16],[101,18,102,18],[84,30,85,30],[101,27,102,27],[101,28,102,28],[101,30,102,30],[88,34,89,34],[88,24,89,24],[88,19,89,19],[84,19,85,19],[84,20,85,20],[84,21,85,21],[88,26,89,26],[84,34,85,34],[55,2,55,14],[51,2,51,14],[88,5,89,5],[88,6,89,6],[84,24,85,24],[54,26,54,35],[67,15,67,25],[65,15,65,25],[68,21,68,25],[68,26,68,35],[64,2,64,14],[67,2,67,14],[88,9,89,9],[88,10,89,10],[88,11,89,11],[84,11,85,11],[84,10,85,10],[84,12,85,12],[88,8,89,8],[77,3,77,8],[84,2,85,2],[84,3,85,3],[57,27,57,35],[57,2,57,6],[83,26,83,35],[84,16,85,16],[84,17,85,17],[84,18,85,18],[59,2,59,35],[71,7,71,16],[71,2,71,6],[67,26,67,35],[64,15,64,25],[84,32,85,32],[69,2,69,14],[69,15,69,20],[69,26,69,35],[69,21,69,25],[84,23,85,23],[84,25,85,25],[84,26,85,26],[84,15,85,15],[72,2,72,35],[70,7,70,16],[70,27,70,35],[71,17,71,26],[71,27,71,35],[84,35,85,35],[26,29,27,29],[41,26,41,35],[39,2,39,14],[39,15,39,25],[39,26,39,35],[58,2,58,35],[62,3,62,15],[73,2,73,35],[57,7,57,16],[57,17,57,26],[55,21,55,25],[44,7,44,16],[44,17,44,26],[44,27,44,35],[46,2,46,35],[40,26,40,35],[34,10,35,19],[42,2,42,14],[42,15,42,20],[42,21,42,25],[42,26,42,35],[40,2,40,14],[40,15,40,25],[41,2,41,14],[13,0,13,24],[16,25,16,36],[14,27,14,36],[19,0,19,24],[19,25,19,36],[16,0,16,24],[17,0,17,24],[56,2,56,6],[56,7,56,16],[52,2,52,14],[53,2,53,14],[53,15,53,25],[52,15,52,25],[56,17,56,26],[54,2,54,14],[56,27,56,35],[51,26,51,35],[51,15,51,25],[55,15,55,20],[54,15,54,20],[54,21,54,25],[52,26,52,35],[53,26,53,35],[55,26,55,35],[26,15,27,15],[26,16,27,16],[26,17,27,17],[26,18,27,18],[43,2,43,6],[43,7,43,16],[43,17,43,26],[31,10,32,35],[50,26,50,35],[41,15,41,20],[41,21,41,25],[45,2,45,35],[43,27,43,35],[50,2,50,14],[50,15,50,25],[44,2,44,6],[26,25,27,25],[34,26,35,35],[26,26,27,26],[26,27,27,27],[26,23,27,23],[26,24,27,24],[26,13,27,13],[26,28,27,28],[0,38,0,39],[104,17,104,25],[64,26,64,35],[66,2,66,14],[66,15,66,25],[66,26,66,35],[65,2,65,14],[70,17,70,26],[70,2,70,6],[65,26,65,35],[68,2,68,14],[68,15,68,20],[29,3,29,17],[26,12,27,12],[20,0,23,36],[17,25,17,36],[18,0,18,24],[18,25,18,36],[26,31,27,31],[26,30,27,30],[26,19,27,19],[26,20,27,20],[48,3,48,13],[26,14,27,14]]}
[null,null,null,null,null,null,null,null,null,null,null,null,null,null,null,null,null,null,null,null,null,null,null,null,null,null,null,null,null,null,null,null,null,null,null,null,null,null,"PROCENT POMOCY",null,0.25]
[]
[]
[]
[]
[]
[]
[]
[]
[]
[]
[]
[]
[]
[null,null,null,null,null,null,null,null,null,null,null,null,null,null,"Agencja Restrukturyzacji i Modernizacji Rolnictwa",null,null,null,null,null,null,null,null,null,null,null,null,"W-2/PROW 2007-2013"]
[]
["WNIOSEK O PŁATNOŚĆ\nDziałanie 123: Zwiększanie wartości dodanej podstawowej produkcji rolnej i leśnej ",null,null,null,null,null,null,null,null,null,null,null,null,null,null,null,null,null,null,null,null,null,null,null,null,"Potwierdzenie przyjęcia \nwniosku\n/pieczęć/"]
[]
[".....................................................................................",null,null,null,null,null,null,null,null,null,null,null,null,null,null,null,null,null,null,null,null,null,null,null,null,"……………………………………….."]
["Znak sprawy",null,null,null,null,null,null,null,null,null,null,null,null,null,null,null,null,null,null,null,null,null,null,null,null,"Data przyjęcia i podpis"]
["Uwaga. Formularz wniosku o płatność należy wypełnić zgodnie z instrukcją do wniosku o płatność"]
[]
[]
[]
[null,"I. IDENTYFIKACJA BENEFICJENTA"]
[]
[]
[null,null,"1.","Numer Identyfikacyjny",null,null,null,null,null,null,null,null,null,null,null,null,null,null,null,null,null," "]
[]
[null,null,"2. ","Dane identyfikacyjne Beneficjenta"]
[]
[]
[null,null,null,"2.1 Nazwisko/Nazwa"]
[]
[null,null,null,"2.2 Pierwsze imię",null,null,null,null,null,null,null,null,null,null,null,null,null,null,null,null,null,null,null,"2.3 Drugie imię"]
[]
[]
[null,null,"3. "," Adres zameldowania/adres siedziby/adres prowadzenia działalności"]
[]
[null,null,"3.1 Województwo",null,null,null,null,null,null,null,null,null,null,null,null,"3.2 Powiat ",null,null,null,null,null,null,null,null,null,null,"3.3 Gmina"]
[]
[null,null,"3.4 Ulica",null,null,null,null,null,null,null,null,null,null,null,null,"3.5 Nr domu",null,null,null,null,null,"3.6 Nr lokalu",null,null,null,null,"3.7 Miejscowość"]
[]
[null,null,"3.8 Kod pocztowy",null,null,null,null,"3.9 Poczta",null,null,null,null,null,null,null,null,null,"3.10 Nr telefonu",null,null,null,null,null,null,null,null,null,"3.11 Nr faksu"]
[]
[null,null,"3.12 Adres e-mail"]
[]
[]
[null,null,"4.","Dane pełnomocnika Beneficjenta"]
[]
[null,null,"4.1 Nazwisko/Nazwa",null,null,null,null,null,null,null,null,null,null,null,null,"4.2 Imię ",null,null,null,null,null,null,null,null,null,null,"4.3 Stanowisko/Funkcja"]
[]
[null,null,"4.4 Województwo",null,null,null,null,null,null,null,null,null,null,null,null,"4.5 Powiat ",null,null,null,null,null,null,null,null,null,null,"4.6 Gmina"]
[]
[null,null,"4.7 Ulica",null,null,null,null,null,null,null,null,null,null,null,null,"4.8 Nr domu",null,null,null,null,null,"4.9 Nr lokalu",null,null,null,null,"4.10 Miejscowość"]
[]
[null,null,"4.11 Kod pocztowy",null,null,null,null,"4.12 Poczta",null,null,null,null,null,null,null,null,null,"4.13 Nr telefonu",null,null,null,null,null,null,null,null,null,"4.14 Nr faksu"]
[]
[null,null,"4.15 Adres e-mail"]
[]
[]
[]
[null,null,"5. ","Dane osoby uprawnionej do kontaktu"]
[]
[null,null,"5.1 Nazwisko/Nazwa",null,null,null,null,null,null,null,null,null,null,null,null,"5.2 Imię ",null,null,null,null,null,null,null,null,null,null,"5.3 Stanowisko/Funkcja"]
[]
[null,null,"5.4 Województwo",null,null,null,null,null,null,null,null,null,null,null,null,"5.5 Powiat ",null,null,null,null,null,null,null,null,null,null,"5.6 Gmina"]
[]
[null,null,"5.7 Ulica",null,null,null,null,null,null,null,null,null,null,null,null,"5.8 Nr domu",null,null,null,null,null,"5.9 Nr lokalu",null,null,null,null,"5.10 Miejscowość"]
[]
[null,null,"5.11 Kod pocztowy",null,null,null,null,"5.12 Poczta",null,null,null,null,null,null,null,null,null,"5.13 Nr telefonu",null,null,null,null,null,null,null,null,null,"5.14 Nr faksu"]
[]
[null,null,"5.15 Adres e-mail"]
[]
[]
[null,"II.","DANE Z UMOWY"]
[]
[null,null,"6. ","Nazwa Funduszu:",null,null,null,null,null,"Europejski Fundusz Rolny na rzecz Rozwoju Obszarów Wiejskich"]
[]
[null,null,"7.","Nazwa Programu Operacyjnego: ",null,null,null,null,null,null,null,null,null,null,"Program Rozwoju Obszarów Wiejskich na lata 2007-2013"]
[]
[null,null,"8. ","Nazwa działania:",null,null,null,null,null,"Zwiększanie wartości dodanej podstawowej produkcji rolnej i leśnej - 123"]
[]
[null,null,"9.","Nr umowy"]
[null,null,null,null,null,null,null,"-",6,9,0,4,0,"-","O","R",null,null,null,null,null,null,null,"/"]
[]
[]
[null,null,"10.  Data zawarcia umowy"]
[null,null,null,null,"_",null,null,"_"]
[]
[]
[null,null,"11. ","Kwota pomocy z umowy ",null,null,null,null,null,null,null,null,null,null,null,null,null,null,null,null,null,"12. ","Kwota pomocy z umowy"]
[null,null,null,"przyznana dla całej operacji (w zł.) ",null,null,null,null,null,null,null,null,null,null,null,null,null,null,null,null,null,null,"przyznana dla danego etapu (w zł.)"]
[]
[null,null,null,null,null,null,null,null,null,null,","]
[]
[]
[]
[null,"III. DANE DOTYCZĄCE WNIOSKU O PŁATNOŚĆ"]
[]
[]
[null,null,null,null,null,null,null,null,null,null,null,null,null,null,"_",null,null,"_",null,null,null,null,null,null,null,null,"_",null,null,"_"]
[null,null,"13.","Wniosek za okres:",null,null,null,null,null,null,null,"od",null,null,null,null,null,null,null,null,null,null,null,"do"]
[]
[null,null,"14.","Rodzaj płatności:",null,null,null,null,null,null,null,"pośrednia"]
[null,null,null,null,null,null,null,null,null,null,null,"ostateczna"]
[]
[null,null,"15. ","Koszty kwalifikowalne realizacji operacji w zł.",null,null,null,null,null,null,null,null,null,null,null,null,null,null,null,null,null,null,null,{"$f":"INT('wykaz faktur'!M18)","v":0}]
[null,null,null,"(zaokrąglone do pełnych złotych \"w dół\")"]
[]
[null,null,"16.","Koszty niekwalifikowalne realizacji operacji w zł.",null,null,null,null,null,null,null,null,null,null,null,null,null,null,null,null,null,null,null,{"$f":"INT('wykaz faktur'!K18-'wykaz faktur'!M18)","v":0}]
[null,null,null,"(zaokrąglone do pełnych złotych \"w dół\")"]
[]
[null,null,"17.","Wnioskowana kwota pomocy w zł.",null,null,null,null,null,null,null,null,null,null,null,null,null,null,null,null,null,null,null,{"$f":"IF((X108*AO1)<=V94,(X108*AO1),V94)","v":0}]
[null,null,null,"(z dokładnością do dwóch miejsc po przecinku)"]
[null,null,null,null,null,null,null,null,null,null,null,null,null,null,null,null,null,null,null,null,null,null,null,null,null,null,null,null,null,null,null,null,null,null,null," "]

{"sheet":"wykaz faktur","index":1,"n_rows":18,"n_cols":13,"rows_kept":18,"cut":false,"hidden":false,"merged":[[2,2,2,12]]}
[]
[]
[null,null,"IV. WYKAZ FAKTUR LUB DOKUMENTÓW O RÓWNOWAŻNEJ WARTOŚCI DOWODOWEJ DOKUMENTUJĄCYCH PONIESIONE KOSZTY KWALIFIKOWALNE"]
[]
[]
[null,null,"Lp.","Nr\ndokumentu","Data \nwystawienia dokumentu\nrrrr-mm-dd","NIP wystawcy dokumentu","Nazwa towaru lub usługi\nlub pozycja na dokumencie","Pozycja w \nzestawieniu \nrzeczowo - finansowym","Data zapłaty\nrrrr-mm-dd","Sposób zapłaty G/P/K ","Kwota dokumentu brutto","Kwota dokumentu netto","Kwota wydatków kwalifikowalnych"]
[null,null,null,1,2,3,4,5,6,7,8,9,10]
[null,null,1]
[null,null,{"$f":"C8+1","v":2}]
[null,null,{"$f":"C9+1","v":3}]
[null,null,4]
[null,null,5]
[null,null,6]
[null,null,7]
[null,null,8]
[null,null,9]
[null,null,10]
[null,null,null,null,null,null,null,null,null,"RAZEM",{"$f":"SUM(K8:K17)","v":0},{"$f":"SUM(L8:L17)","v":0},{"$f":"SUM(M8:M17)","v":0}]

{"sheet":"zest. rzecz-finans","index":2,"n_rows":57,"n_cols":10,"rows_kept":57,"cut":false,"hidden":false,"merged":[[56,2,56,6],[26,1,37,1],[45,1,49,1],[44,2,44,9],[48,2,48,6],[49,2,49,6],[41,4,41,6],[50,2,50,9],[26,3,26,9],[31,2,31,6],[32,3,32,9],[41,3,42,3],[41,1,42,2],[51,1,55,1],[55,2,55,6],[1,10,47,10],[2,7,2,9],[5,2,5,9],[2,3,3,3],[6,3,6,9],[2,1,3,2],[4,1,4,2],[2,4,2,6],[43,1,43,2],[37,2,37,6],[41,7,41,9],[6,1,18,1],[24,1,24,2],[22,1,23,2],[25,2,25,9],[13,3,13,9],[22,7,22,9],[12,2,12,6],[18,2,18,6],[22,3,23,3],[22,4,22,6],[21,1,21,4]]}
[]
[null,"   V. ZESTAWIENIE RZECZOWO - FINANSOWE Z REALIZACJI OPERACJI DLA ETAPU ",null,null,null,"……"]
[null,"Lp",null,"Wyszczególnienie zakresu rzeczowego dla etapu \n(zgodnie z pozycjami zawartymi w umowie)","Mierniki rzeczowe",null,null,"Mierniki finansowe"]
[null,null,null,null,"jednostka miary","ilość wg umowy","ilość wg \nrozliczenia","etap wg umowy","wg rozliczenia etapu","odchylenia"]
[null,null,null,1,2,3,4,5,6,7]
[null,"I","KOSZTY INWESTYCYJNE NIE OBJĘTE LEASINGIEM (Ki)"]
[null,null,"A"]
[null,null,1,null,null,null,null,null,null,{"$f":"IF(ISBLANK(H8),\"\",(I8-H8)/H8)","v":""}]
[null,null,2,null,null,null,null,null,null,""]
[null,null,3,null,null,null,null,null,null,""]
[null,null,4,null,null,null,null,null,null,{"$f":"IF(ISBLANK(H11),\"\",(I11-H11)/H11)","v":""}]
[null,null,5,null,null,null,null,null,null,{"$f":"IF(ISBLANK(H12),\"\",(I12-H12)/H12)","v":""}]
[null,null,"SUMA A",null,null,null,null,{"$f":"SUM(H8:H12)","v":0},{"$f":"SUM(I8:I12)","v":0}]
[null,null,"B"]
[null,null,1,null,null,null,null,null,null,{"$f":"IF(ISBLANK(H15),\"\",(I15-H15)/H15)","v":""}]
[null,null,2,null,null,null,null,null,null,""]
[null,null,3,null,null,null,null,null,null,""]
[null,null,4,null,null,null,null,null,null,""]
[null,null,"SUMA B",null,null,null,null,{"$f":"SUM(H15:H18)","v":0},{"$f":"SUM(I15:I18)","v":0}]
[]
[]
[null," V. ZESTAWIENIE RZECZOWO - FINANSOWE Z REALIZACJI OPERACJI DLA ETAPU ",null,null,null," ….","cd"]
[null,"Lp",null,"Wyszczególnienie zakresu rzeczowego dla etapu \n(zgodnie z pozycjami zawartymi w umowie)","Mierniki rzeczowe",null,null,"Mierniki finansowe"]
[null,null,null,null,"jednostka miary","ilość wg umowy","ilość wg \nrozliczenia","etap wg umowy","wg rozliczenia etapu","odchylenia"]
[null,null,null,1,2,3,4,5,6,7]
[null,"I","KOSZTY INWESTYCYJNE NIE OBJĘTE LEASINGIEM (Ki)"]
[null,null,"…."]
[null,null,1,null,null,null,null,null,null,{"$f":"IF(ISBLANK(H28),\"\",(I28-H28)/H28)","v":""}]
[null,null,2,null,null,null,null,null,null,""]
[null,null,3,null,null,null,null,null,null,""]
[null,null,4,null,null,null,null,null,null,""]
[null,null,"SUMA ….",null,null,null,null,{"$f":"SUM(H28:H31)","v":0},{"$f":"SUM(I28:I31)","v":0}]
[null,null,"…."]
[null,null,1,null,null,null,null,null,null,{"$f":"IF(ISBLANK(H34),\"\",(I34-H34)/H34)","v":""}]
[null,null,2,null,null,null,null,null,null,""]
[null,null,3,null,null,null,null,null,null,""]
[null,null,4,null,null,null,null,null,null,""]
[null,null,"SUMA ….",null,null,null,null,{"$f":"SUM(H34:H37)","v":0},{"$f":"SUM(I34:I37)","v":0}]
[]
[]
[null,"   V. ZESTAWIENIE RZECZOWO - FINANSOWE Z REALIZACJI OPERACJI DLA ETAPU ",null,null,null,"……","cd"]
[null,"Lp",null,"Wyszczególnienie zakresu rzeczowego dla etapu \n(zgodnie z pozycjami zawartymi w umowie)","Mierniki rzeczowe",null,null,"Mierniki finansowe"]
[null,null,null,null,"jednostka miary","ilość wg umowy","ilość wg \nrozliczenia","etap wg umowy","wg rozliczenia etapu","odchylenia"]
[null,null,null,1,2,3,4,5,6,7]
[null,"II","KOSZTY INWESTYCYJNE OBJĘTE LEASINGIEM (Kl) "]
[null,null,1,null,null,null,null,null,null,{"$f":"IF(ISBLANK(H46),\"\",(I46-H46)/H46)","v":""}]
[null,null,2,null,null,null,null,null,null,""]
[null,null,3,null,null,null,null,null,null,""]
[null,null,"SUMA II",null,null,null,null,{"$f":"SUM(H46:H48)","v":0},{"$f":"SUM(I46:I48)","v":0}]
[null,null,"SUMA POSZCZEGÓLNYCH SUM ZADAŃ INWESTYCYJNYCH (Ki + Kl)",null,null,null,null,{"$f":"H13 + H19 + H32 + H38 + H49","v":0},{"$f":"I13 + I19 + I32 + I38 + I49","v":0}]
[null,"III","KOSZTY OGÓLNE (Ko) "]
[null,null,1,null,null,null,null,null,null,{"$f":"IF(ISBLANK(H52),\"\",(I52-H52)/H52)","v":""}]
[null,null,2,null,null,null,null,null,null,""]
[null,null,3,null,null,null,null,null,null,""]
[null,null,4,null,null,null,null,null,null,""]
[null,null,"SUMA (Ko)",null,null,null,null,{"$f":"SUM(H52:H55)","v":0},{"$f":"SUM(I52:I55)","v":0}]
[null,"IV","SUMA KOSZTÓW KWALIFIKOWALNYCH OPERACJI (Ki + Kl + Ko)",null,null,null,null,{"$f":"H50 + H56","v":0},{"$f":"I50 + I56","v":0}]

{"sheet":"Oświadczenie","index":3,"n_rows":37,"n_cols":9,"rows_kept":37,"cut":false,"hidden":false,"merged":[[36,3,36,13],[24,3,26,5],[27,3,27,5],[19,3,19,12],[12,3,12,12],[0,0,0,14],[1,0,32,0],[1,14,32,14],[2,2,2,11],[21,7,21,11],[20,3,20,12],[10,3,10,12],[14,1,14,13],[8,3,8,12],[24,8,26,12],[27,8,27,12],[32,3,32,13],[4,3,4,12],[6,3,6,12],[17,3,17,12],[11,3,11,12]]}
[]
[]
[null,null,"VI.OŚWIADCZENIE BENEFICJENTA"]
[]
[null,null,"1.","Oświadczam, że informacje zawarte we wniosku o płatność oraz jego załącznikach są prawdziwe i zgodne ze stanem prawnym i faktycznym oraz, że znane są mi skutki składania fałszywych oświadczeń wynikające  z art. 297 § 1 ustawy z dn. 6 czerwca 1997r. Kodeks Karny (Dz. U. Nr 88, poz.553 z późn. zm.)"]
[]
[null,null,"2.","Oświadczam, że operacja określona niniejszym wnioskiem o płatność nie była finansowana z innych środków publicznych i na jej realizację nie będą wykorzystane inne środki publiczne."]
[]
[null,null,"3.","Oświadczam, iż jestem świadomy, iż w przypadku gdy kwota pomocy wpisana we wniosku o płatność będzie przekraczała kwotę pomocy wynikającą z prawidłowo poniesionych kosztów (obliczoną po weryfikacji wniosku o płatność) o więcej niż 3 % Agencja zastosuje zmniejszenie zgodnie z przepisami                    wspólnotowymi*."]
[]
[null,null,"4.","Oświadczam, że jestem świadomy, iż w przypadku stwierdzenia umyślnego złożenia fałszywych oświadczeń, daną operację wyklucza się ze wsparcia EFRROW i odzyskuje się wszystkie kwoty, które już zostały wypłacone na tę operację wraz z należnymi odsetkami oraz, że zostanę wykluczony z otrzymywania wsparcia w ramach tego samego działania w danym roku kalendarzowym oraz w następnym roku kalendarzowym**."]
[]
[null,null,"5.","Oświadczam, iż w stosunku do mnie/reprezentowanego przeze mnie beneficjenta nie istnieją przesłanki do ogłoszenia likwidacji, upadłości.\n"]
[]
[]
[]
[]
[null,null,"6.","Przyjmuję do wiadomości, iż:\na) zebrane dane osobowe będą przechowywane i przetwarzane przez Agencję Restrukturyzacji i Modernizacji Rolnictwa z siedzibą: 00-175 Warszawa Al. Jana Pawła II 70, zgodnie z przepisami ustawy z dnia 29 sierpnia 1997 r. o ochronie danych osobowych (Dz. U. z 2002 r. Nr 101, poz.926 z późn. zm.) w celu przyznania pomocy finansowej i płatności w ramach  działania \"Zwiększanie wartości dodanej podstawowej produkcji rolnej i leśnej\",\nb) przysługuje mi prawo wglądu do moich danych osobowych oraz do ich poprawiania.\n"]
[null,null,null," "]
[null,null,"7.","Przyjmuję do wiadomości, że dane beneficjenta mogą być przetwarzane przez organy audytowe i dochodzeniowe Wspólnot i państw członkowskich dla zabezpieczenia interesów finansowych Wspólnot."]
[null,null,"8.","Przyjmuję do wiadomości, że przyznana wnioskodawcy, nie będącemu osobą fizyczną, kwota płatności z tytułu przyznanej pomocy w ramach działania \"Zwiększanie wartości dodanej podstawowej produkcji rolnej i leśnej\" zostanie opublikowana na stronie internetowej MRiRW."]
[]
[]
[]
[]
[]
[]
[null,null,null,"(miejscowość i data)",null,null,null,null,"(podpis Beneficjenta/osoby reprezentującej Beneficjenta/pełnomocnika Beneficjenta)"]
[]
[]
[]
[]
[null,null,null,"* Art. 30 ust. 1 rozporządzenia Komisji (UE) nr 65/2011 z dnia 27 stycznia 2011 r. ustanawiającego szczegółowe zasady wykonania rozporządzenia Rady (WE) nr 1698/2005 w odniesieniu do wprowadzenia procedur kontroli oraz do zasady wzajemnej zgodności w zakresie środków wsparcia rozwoju obszarów wiejskich (Dz.Urz. L 25 z 28.01.2011r.)"]
[]
[]
[]
[null,null,null,"** Art. 30 ust. 2 rozporządzenia Komisji (UE) nr 65/2011 z dnia 27 stycznia 2011 r. ustanawiającego szczegółowe zasady wykonania rozporządzenia Rady (WE) nr 1698/2005 w odniesieniu do wprowadzenia procedur kontroli oraz do zasady wzajemnej zgodności w zakresie środków wsparcia rozwoju obszarów wiejskich (Dz.Urz. L 25 z 28.01.2011r.)"]

{"sheet":"Załączniki","index":4,"n_rows":41,"n_cols":3,"rows_kept":41,"cut":false,"hidden":false,"merged":[[0,0,0,2],[40,0,40,1],[10,2,11,2],[14,2,15,2],[12,2,13,2],[10,0,13,0],[16,0,17,0],[18,0,19,0]]}
["VII. ZAŁĄCZNIKI DO WNIOSKU O PŁATNOŚĆ\n"]
["LP","Nazwa załącznika","Liczba"]
[1,"Faktury lub dokumenty o równoważnej wartości dowodowej \n- kopie potwierdzone za zgodność z oryginałem przez pracownika Agencji"]
[2,"Dowody zapłaty \n- kopie potwierdzone za zgodność z oryginałem przez pracownika Agencji"]
[3,"Pozwolenie na użytkowanie obiektu budowlanego - jeżeli właściwy organ nałożył taki obowiązek w wydanym pozwoleniu na budowę lub nałożył taki obowiązek innymi decyzjami – oryginał lub kopia potwierdzona za zgodność z oryginałem przez notariusza lub podmiot, który wydał dokument lub pracownika Agencji"]
[4,"Zawiadomienie właściwego organu o zakończeniu budowy złożone co najmniej 21 dni przed zamierzonym terminem przystąpienia do użytkowania, jeżeli obowiązek taki wynika z przepisów prawa budowlanego lub właściwy organ nałożył taki obowiązek - oryginał lub kopia potwierdzona za zgodność z oryginałem przez notariusza lub podmiot, który wydał dokument lub pracownika Agencji\nwraz z:\n- Oświadczeniem Beneficjenta, że w ciągu 21 dni od dnia zgłoszenia zakończenia robót, właściwy organ nie wniósł sprzeciwu – oryginał\nalbo \n- Zaświadczeniem wydanym przez właściwy organ, że nie wnosi sprzeciwu w przypadku, gdy zawiadomienie o zakończeniu robót budowlanych będzie przedkładane przed upływem 21 dni  – oryginał lub kopia potwierdzona za zgodność z oryginałem przez notariusza lub podmiot, który wydał dokument lub pracownika Agencji"]
[5,"Pozwolenie wodnoprawne – jeżeli dla robót wymagana była decyzja o zatwierdzeniu projektu prac geologicznych - oryginał lub kopia potwierdzona za zgodność z oryginałem przez notariusza lub podmiot, który wydal dokument lub pracownika Agencji"]
[6,"Protokoły odbioru robót lub protokoły montażu lub rozruchu maszyn i urządzeń (jeżeli dotyczy) albo oświadczenie Beneficjenta o poprawnym wykonaniu robót budowlanych lub montażu lub rozruchu z udziałem środków własnych - oryginał lub kopia potwierdzona za zgodność z oryginałem przez notariusza lub podmiot, który wydał dokument lub pracownika Agencji"]
[7,"Kosztorys powykonawczy sporządzony metodą kalkulacji uproszczonej lub szczegółowej w zależności od sposobu wykonywania robót budowlanych z podaniem podstawy wyceny oraz rysunki zamienne do projektu budowlanego, załączane do wniosku o płatność w przypadku, gdy:\n- podczas wykonywania robót budowlanych wprowadzono istotne odstępstwa, o których mowa w art. 36a ustawy z dnia 7 lipca 1994r. Prawo budowlane (Dz. U. 2010 r. Nr 243, poz. 1623 z późn. zm.)\nlub\n- Beneficjent w trakcie realizacji robót budowlanych zmienił system ich wykonywania i nie wszystkie roboty budowlane w ramach projektu zostały zlecone do wykonania i jednocześnie nie zawarto wynikającego z tej zmiany aneksu do umowy – oryginał lub kopia potwierdzona za zgodność z oryginałem przez notariusza lub podmiot, który wydał dokument lub pracownika Agencji"]
[8,"Wydruk elektroniczny z dokumentacji księgowej, lub kopia z książki ewidencji środków trwałych – w przypadku, gdy beneficjent prowadzi księgowość – oryginał lub kopia potwierdzona za zgodność z oryginalem przez Beneficjenta "]
[9,"Informacja o numerze rachunku prowadzonego przez bank lub spółdzielczą kasę oszczędnościowo-kredytową, wskazująca numer rachunku Beneficjenta lub jego pełnomocnika, na który Agencja przekazuje środki finansowe w ramach pomocy wskazany w: "]
[null," - zaświadczeniu z banku lub spółdzielczej kasy oszczędnościowo-kredytowej, wskazującym numer rachunku, na który mają być przekazane środki finansowe - jeżeli dotyczy - oryginał (dołączony do pierwszego wniosku o płatność), "]
[null,"albo"]
[null," -  kopii umowy z bankiem lub spółdzielczą kasą oszczędnościowo-kredytową na prowadzenie rachunku, lub jej części, pod warunkiem, że ta część będzie zawierać dane niezbędne do dokonania przelewu środków finansowych. W przypadku, jeśli w ww. umowie będzie wyszczególniony więcej niż jeden numer rachunku, oświadczenie beneficjenta, wskazujące rachunek, na który mają być przekazane środki finansowe - jeżeli dotyczy  - kopia potwierdzona za zgodność z oryginałem przez pracownika Agencji (dołączona do pierwszego wniosku o płatność). "]
[null,"albo"]
[null," - innym dokumencie z banku lub spółdzielczej kasy oszczędnościowo-kredytowej świadczącym o aktualnym numerze rachunku, pod warunkiem, że będzie on zawierał dane niezbędne do dokonania przelewu środków finansowych - jeżeli dotyczy - oryginał lub kopia potwierdzona za zgodność z oryginałem przez pracownika Agencji (dołączony do pierwszego wniosku o płatność), "]
[null,"albo"]
[null," - oświadczeniu Beneficjenta wskazującym na możliwość wypłaty środków finansowych w ramach pomocy na rachunek, który został podany we wniosku o wpis do ewidencji producentów, złożonym zgodnie z przepisami art. 11 ust. 3 pkt 5 ustawy z dnia 18 grudnia 2003 r. o krajowym systemie ewidencji producentów, ewidencji gospodarstw rolnych oraz ewidencji wniosków o przyznanie płatności (Dz.U. 2012 r.  poz. 86 z późn. zm.) w sytuacji, kiedy Beneficjent pobiera płatności bezpośrednie do gruntów rolnych - jeżeli dotyczy - oryginał (dołączany do pierwszego wniosku o płatność),"]
[null,"albo"]
[null," - oświadczeniu Beneficjenta o innym numerze rachunku, na który mają być przekazane środki finansowe, w sytuacji, kiedy Beneficjent nie pobiera płatności bezpośrednich do gruntów rolnych - jeżeli dotyczy - oryginał (dołączony do pierwszego wniosku o płatność)."]
[10,"Umowy z dostawcami lub wykonawcami zawierające specyfikację będącą podstawą wystawienia każdej z przedstawionych faktur lub innych dokumentów o równoważnej wartości dowodowej – jeżeli nazwa towaru lub usługi w przedstawionej fakturze lub dokumencie o równoważnej wartości dowodowej odnosi się do umów zawartych przez Beneficjenta lub nie pozwala na precyzyjne określenie kosztów kwalifikowalnych - kopia potwierdzona za zgodność z oryginałem przez notariusza lub podmiot, który wydał dokument lub pracownika Agencji."]
[11,"Uzasadnienie zmian dokonanych w poszczególnych pozycjach zestawienia rzeczowo – finansowego z realizacji operacji, w przypadku, gdy koszty kwalifikowalne wzrosły o więcej niż 10% w stosunku do wartości zapisanych w zestawieniu rzeczowo-finansowym operacji, stanowiącym załącznik do umowy/ Uzasadnienie zmian dokonanych w poszczególnych pozycjach zestawienia rzeczowo–finansowego z realizacji operacji, w przypadku, gdy koszty kwalifikowalne wzrosły w stosunku do wartości zapisanych w zestawieniu rzeczowo-finansowym operacji stanowiącym załącznik do umowy - oryginał"]
[12,"Sprawozdanie z realizacji operacji (dołączone do wniosku o płatność ostateczną) - sporządzone na formularzu udostępnionym przez Agencję - oryginał."]
[13,"Dowód rejestracyjny, jeżeli jest wymagany odrębnymi przepisami - dotyczy środków transportu objętych współfinansowaniem - kopia potwierdzona za zgodność z oryginałem przez pracownika Agencji, podmiot, który wydał dokument lub notariusza."]
[14,"Dokumenty celne (Jednolity Dokument Administracyjny SAD) zawierające stosowną adnotację celników przeprowadzających odprawę, jako potwierdzenia dopuszczenia towarów do obrotu – dotyczy maszyn i urządzeń zakupionych w krajach nienależących do Unii Europejskiej - kopia potwierdzona za zgodność z oryginałem przez notariusza lub podmiot, który wydał dokument lub pracownika Agencji"]
[15,"Decyzje wydane przez Powiatowego Lekarza Weterynarii - jeżeli dotyczy - kopia potwierdzona za zgodność z oryginałem przez pracownika Agencji, podmiot, który wydał dokument lub notariusza."]
[16,"Opinie wydane przez Powiatowego Inspektora Sanitarnego - jeżeli dotyczy - kopia potwierdzona za zgodność z oryginałem przez pracownika Agencji, podmiot, który wydał dokument lub notariusza."]
[17,"Informacja o spełnieniu wymagań w zakresie ochrony środowiska wydana przez Wojewódzki Inspektorat Ochrony Środowiska - jeżeli dotyczy - kopia potwierdzona za zgodność z oryginałem przez pracownika Agencji, podmiot, który wydał dokument lub notariusza."]
[18,"Zaświadczenie Wojewódzkiego Inspektoratu Ochrony Roślin i Nasiennictwa - jeżeli dotyczy - oryginał lubkopia potwierdzona za zgodność z oryginałem przez pracownika Agencji, podmiot, który wydał dokument lub notariusza."]
[19,"Dokument potwierdzający ustanowienie dodatkowego zabezpieczenia - jeżeli dotyczy - oryginał."]
[20,"Zestawienie umów długoterminowych, zawierające nazwy podmiotów, z którymi zawarto umowy oraz ilość zakontraktowanego surowca oraz oświadczenie Beneficjenta o ilości nabywanego surowca według wzoru określonego przez Agencję - oryginał (dołączany do wniosku o płatność, jeżeli dotyczy)"]
[21,"Pisemne oświadczenie podmiotu prowadzącego zakład zajmujący się wstępnym przetwarzaniem produktów rolnych, że nabywa on produkty rolne bezpośrednio od producentów rolnych - składane przez Beneficjentów zajmujących się przetwórstwem wstępnie przetworzonych artykułów rolnych, nabywanych od podmiotów, które pozyskują surowiec do ich produkcji na podstawie umów z producentami rolnymi - oryginał (dołączany do wniosku o płatność, jeżeli dotyczy)."]
[22,"Wykaz działek, na których zrealizowana została operacja trwale związana z nieruchomością objęta wnioskiem o płatność - na formularzu udostępnionym przez Agencję - oryginał"]
[23,"Informacja dotycząca parametrów zakupionej maszyny/urządzenia – na formularzu udostępnionym przez Agencję - oryginał."]
[24,"Umowa cesji wierzytelności - jeżeli dotyczy - oryginał."]
[25,"Pełnomocnictwo - w przypadku, gdy zostało udzielone innej osobie niż podczas składania wniosku o przyznanie pomocy lub gdy zmienił się zakres poprzednio udzielonego pełnomocnictwa lub gdy zakres udzielonego pełnomocnictwa nie obejmował etapu składania wniosku o płatność – oryginał lub kopia potwierdzona za zgodność z oryginałem przez notariusza lub pracownika ARiMR"]
[26,"Oświadczenie Beneficjenta o wyodrębnieniu osobnych kont albo korzystaniu z odpowiedniego kodu rachunkowego w ramach prowadzonych ksiąg rachunkowych w rozumieniu art. 75 ust. 1 lit. c pkt i rozporządzenia 1698/2005, dla wszystkich transakcji związanych z operacją/ Oświadczenie Beneficjenta o wyodrębnieniu osobnych kont albo korzystaniu z odpowiedniego kodu rachunkowego wraz z wyciągami z polityki rachunkowości i zakładowego planu kont oraz z wydrukami z kont księgowych w ramach prowadzonych ksiąg rachunkowych w rozumieniu art. 75 ust. 1 lit. c pkt i rozporządzenia 1698/2005, dla wszystkich transakcji związanych z operacją, sporządzone na formularzu udostępnionym przez Agencję - jeżeli dotyczy – oryginał"]
[27,"Zestawienie wszystkich dokumentów księgowych dotyczących operacji, wypełnione przez Beneficjenta na formularzu udostępnionym przez Agencję, gdy na podstawie odrębnych przepisów Beneficjent nie jest obowiązany do prowadzenia ksiąg rachunkowych – oryginał."]
[28,"Zestawienie planowanych oraz wybranych dostawców i  wykonawców operacji - na formularzu udostępnionym przez Agencję  - dotyczy wniosków o przyznanie pomocy złożonych w 2013 roku – oryginał"]
[29,"Inne załączniki - jeśli dotyczy"]
["Liczba załączników (ogółem)",null,{"$f":"SUM(C3:C40)","v":0}]

{"sheet":"Arkusz1","index":5,"n_rows":32,"n_cols":2,"rows_kept":32,"cut":false,"hidden":true,"merged":[]}
[]
[]
[1,"Dolnośląskie"]
[{"$f":"1+A3","v":2},"Kujawsko-Pomorskie"]
[{"$f":"1+A4","v":3},"Lubelskie"]
[4,"Lubuskie"]
[5,"Łódzkie"]
[6,"Małopolskie"]
[7,"Mazowieckie"]
[8,"Opolskie"]
[9,"Podkarpackie"]
[10,"Podlaskie"]
[11,"Pomorskie"]
[12,"Śląskie"]
[13,"Świetokrzyskie"]
[14,"Warmińsko-Mazurskie"]
[15,"Wielkopolskie"]
[16,"Zachodniopomorskie"]
[]
[]
[1,"G"]
[2,"P"]
[3,"K"]
[]
[]
[1,"x"]
[2]
[]
[]
[1,0.25]
[2,0.4]
[3,0.5]